bitfinex/quotes_BTCUSD_20240810
["timestamp","ask_amount","ask_price","bid_price","bid_amount"]
[1723300737649,0.07983951,60731.0,60730.0,0.99312302]
[1723300737801,0.07983951,60731.0,60730.0,1.10748108]
[1723300738002,0.07983951,60731.0,60730.0,0.94281808]
[1723300738643,0.07983951,60731.0,60730.0,1.10748108]
[1723300740727,0.07983951,60731.0,60730.0,0.99312302]
[1723300740923,0.07983951,60731.0,60730.0,1.10759789]
[1723300743421,0.07983951,60731.0,60730.0,0.99312302]
[1723300743642,0.07983951,60731.0,60730.0,1.10750917]
[1723300744397,0.07983951,60731.0,60730.0,0.86051517]
[1723300745058,0.07983951,60731.0,60730.0,0.74612902]
[1723300745835,0.16216951,60731.0,60730.0,0.5773141]
[1723300746044,0.16216951,60731.0,60730.0,0.5823141]
[1723300746605,0.32682951,60731.0,60730.0,0.5823141]
[1723300748564,0.49148951,60731.0,60730.0,0.5823141]
[1723300748770,0.32682951,60731.0,60730.0,0.5823141]
[1723300749450,0.16216951,60731.0,60730.0,0.5823141]
[1723300749656,0.07983951,60731.0,60730.0,0.5823141]
[1723300750192,0.07983951,60731.0,60730.0,0.74612902]
[1723300752293,0.07983951,60731.0,60730.0,0.82846002]
[1723300755792,0.07983951,60731.0,60730.0,0.94301503]
[1723300756016,0.07983951,60731.0,60730.0,0.94327104]
[1723300756474,0.07983951,60731.0,60730.0,0.94326898]
[1723300757398,0.07983951,60731.0,60730.0,1.10793198]
[1723300757852,0.07983951,60731.0,60730.0,0.94347005]
[1723300759637,0.07983951,60731.0,60730.0,0.94343735]
[1723300761510,0.07983951,60731.0,60730.0,0.94341922]
[1723300765315,0.07983951,60731.0,60730.0,0.82846002]
[1723300765558,0.07983951,60731.0,60730.0,0.94365293]
[1723300765815,0.07983951,60731.0,60730.0,0.94363849]
[1723300766072,0.00033951,60731.0,60730.0,1.17150149]
[1723300768645,0.07813951,60731.0,60730.0,0.69749257]
[1723300772325,0.15693951,60731.0,60730.0,0.69749257]
[1723300773284,0.32111597,60731.0,60730.0,0.69749257]
[1723300773683,0.23878597,60731.0,60730.0,0.69749257]
[1723300774409,0.23878597,60731.0,60730.0,0.680709]
[1723300774766,0.23878597,60731.0,60730.0,0.56553053]
[1723300774964,0.23878597,60731.0,60730.0,0.68060511]
[1723300775294,0.23878597,60731.0,60730.0,0.56553053]
[1723300775524,0.23878597,60731.0,60730.0,0.68060612]
[1723300775708,0.23878597,60731.0,60730.0,0.68060635]
[1723300775905,0.32111597,60731.0,60730.0,0.56553053]
[1723300778503,0.32111597,60731.0,60730.0,0.56053053]
[1723300778504,0.65043597,60731.0,60730.0,0.56053053]
[1723300778693,0.94009597,60731.0,60730.0,0.56053053]
[1723300778918,1.06343753,60731.0,60730.0,0.56053053]
[1723300779121,1.02984861,60731.0,60730.0,0.56053053]
[1723300779526,1.02985176,60731.0,60730.0,0.56053053]
[1723300780682,0.94009597,60731.0,60730.0,0.56053053]
[1723300781026,1.02983558,60731.0,60730.0,0.56053053]
[1723300781227,1.32887447,60731.0,60730.0,0.56053053]
[1723300781481,1.60699798,60731.0,60730.0,0.56053053]
[1723300781720,1.49355467,60731.0,60730.0,0.56053053]
[1723300781864,1.64156454,60731.0,60730.0,0.56053053]
[1723300782457,1.66463665,60731.0,60730.0,0.56053053]
[1723300782851,2.30463665,60731.0,60730.0,0.56053053]
[1723300783051,2.06679486,60731.0,60730.0,0.56053053]
[1723300783264,2.15653754,60731.0,60730.0,0.56053053]
[1723300784413,2.30450143,60731.0,60730.0,0.54653053]
[1723300784615,2.30450164,60731.0,60730.0,0.54653053]
[1723300785271,2.15653754,60731.0,60730.0,0.54653053]
[1723300785466,2.30445425,60731.0,60730.0,0.53253053]
[1723300785604,2.15653754,60731.0,60730.0,0.53253053]
[1723300785812,2.15653754,60731.0,60730.0,0.53353053]
[1723300786033,1.83365357,60731.0,60730.0,0.53353053]
[1723300786238,1.17365357,60731.0,60730.0,0.53353053]
[1723300786441,1.29788768,60731.0,60730.0,0.53353053]
[1723300786685,1.31788768,60731.0,60730.0,0.53353053]
[1723300786889,1.31688768,60731.0,60730.0,0.53353053]
[1723300787084,1.31809122,60731.0,60730.0,0.53353053]
[1723300788494,1.19485711,60731.0,60730.0,0.53353053]
[1723300789046,1.75485711,60731.0,60730.0,0.53353053]
[1723300790274,1.66491089,60731.0,60730.0,0.53353053]
[1723300790545,1.10491089,60731.0,60730.0,0.53353053]
[1723300791052,1.17881217,60731.0,60730.0,0.53353053]
[1723300791385,1.76881217,60731.0,60730.0,0.53353053]
[1723300792462,1.69491089,60731.0,60730.0,0.53353053]
[1723300793043,1.74880122,60731.0,60730.0,0.53353053]
[1723300793264,1.72416912,60731.0,60730.0,0.53353053]
[1723300793690,1.67491089,60731.0,60730.0,0.53353053]
[1723300794745,1.59111089,60731.0,60730.0,0.53353053]
[1723300794946,1.66991089,60731.0,60730.0,0.53353053]
[1723300795218,1.66891089,60731.0,60730.0,0.53253053]
[1723300795544,1.66991089,60731.0,60730.0,0.53253053]
[1723300796236,1.67491089,60731.0,60730.0,0.53253053]
[1723300796591,1.69491089,60731.0,60730.0,0.53253053]
[1723300796748,1.67491089,60731.0,60730.0,0.53253053]
[1723300797537,1.67991089,60731.0,60730.0,0.53253053]
[1723300797768,1.66991089,60731.0,60730.0,0.53253053]
[1723300801516,1.84906059,60731.0,60730.0,0.53253053]
[1723300801695,1.98826616,60731.0,60730.0,0.53253053]
[1723300801904,1.99826652,60731.0,60730.0,0.53253053]
[1723300802116,1.9982707,60731.0,60730.0,0.53253053]
[1723300802273,1.93902282,60731.0,60730.0,0.53253053]
[1723300802484,1.78487312,60731.0,60730.0,0.53253053]
[1723300803006,1.8341204,60731.0,60730.0,0.53253053]
[1723300803163,1.85874495,60731.0,60730.0,0.53253053]
[1723300803707,1.78487312,60731.0,60730.0,0.53253053]
[1723300803881,1.85874495,60731.0,60730.0,0.53253053]
[1723300804082,2.02340495,60731.0,60730.0,0.53253053]
[1723300804285,1.97253312,60731.0,60730.0,0.53253053]
[1723300805456,1.78487312,60731.0,60730.0,0.53253053]
[1723300805683,1.76487312,60731.0,60730.0,0.53253053]
[1723300805888,1.81412176,60731.0,60730.0,0.53253053]
[1723300806090,1.76487312,60731.0,60730.0,0.53253053]
[1723300806298,1.78487312,60731.0,60730.0,0.53253053]
[1723300806549,1.83412011,60731.0,60730.0,0.53253053]
[1723300808437,1.83412733,60731.0,60730.0,0.53253053]
[1723300808642,1.83579942,60731.0,60730.0,0.53253053]
[1723300808828,1.83587497,60731.0,60730.0,0.53253053]
[1723300809030,1.7441651,60731.0,60730.0,0.53253053]
[1723300809256,1.83587544,60731.0,60730.0,0.53253053]
[1723300809450,1.78662123,60731.0,60730.0,0.53253053]
[1723300809915,1.69491089,60731.0,60730.0,0.53253053]
[1723300810096,1.78668893,60731.0,60730.0,0.53253053]
[1723300810498,1.86055941,60731.0,60730.0,0.53253053]
[1723300810666,1.78668893,60731.0,60730.0,0.53253053]
[1723300811339,1.81095321,60731.0,60730.0,0.53253053]
[1723300811746,1.76168893,60731.0,60730.0,0.53253053]
[1723300811987,1.09476755,60731.0,60730.0,0.53253053]
[1723300812147,1.09476755,60731.0,60730.0,0.59513053]
[1723300812148,0.49178951,60731.0,60730.0,0.59513053]
[1723300813279,0.59178951,60731.0,60730.0,0.59513053]
[1723300813842,0.59078951,60731.0,60730.0,0.59513053]
[1723300814247,0.59178951,60731.0,60730.0,0.59513053]
[1723300814804,0.59078951,60731.0,60730.0,0.59513053]
[1723300815118,0.59178951,60731.0,60730.0,0.59513053]
[1723300815520,0.59078951,60731.0,60730.0,0.59513053]
[1723300815942,0.59178951,60731.0,60730.0,0.59513053]
[1723300817247,0.59078951,60731.0,60730.0,0.59513053]
[1723300817651,0.59178951,60731.0,60730.0,0.59513053]
[1723300818051,1.55104951,60731.0,60730.0,0.53253053]
[1723300818317,1.53104951,60731.0,60730.0,0.53253053]
[1723300818668,0.98096062,60731.0,60730.0,0.53253053]
[1723300818879,0.84004951,60731.0,60730.0,0.53253053]
[1723300819076,0.89035767,60731.0,60730.0,0.53253053]
[1723300819430,0.86104951,60731.0,60730.0,0.53253053]
[1723300819559,0.91037612,60731.0,60730.0,0.53253053]
[1723300819921,1.62037573,60731.0,60730.0,0.53253053]
[1723300820128,1.57104951,60731.0,60730.0,0.53253053]
[1723300820333,1.6420156,60731.0,60730.0,0.53253053]
[1723300820533,1.71597785,60731.0,60730.0,0.53253053]
[1723300820737,1.74063193,60731.0,60730.0,0.53253053]
[1723300821210,1.6630156,60731.0,60730.0,0.53253053]
[1723300821410,1.76163193,60731.0,60730.0,0.53253053]
[1723300821766,1.6630156,60731.0,60730.0,0.53253053]
[1723300822675,1.95010094,60731.0,60730.0,0.53253053]
[1723300822871,1.95024735,60731.0,60730.0,0.53253053]
[1723300823071,1.82697693,60731.0,60730.0,0.53253053]
[1723300823273,1.95024735,60731.0,60730.0,0.53253053]
[1723300824530,1.82697693,60731.0,60730.0,0.53253053]
[1723300825908,1.31510201,60731.0,60730.0,0.59513053]
[1723300826137,1.30178951,60731.0,60730.0,0.59513053]
[1723300827183,1.30078951,60731.0,60730.0,0.59513053]
[1723300827435,1.30178951,60731.0,60730.0,0.59513053]
[1723300828047,1.30078951,60731.0,60730.0,0.59513053]
[1723300828489,1.35015,60731.0,60730.0,0.59513053]
[1723300829170,1.35015,60731.0,60730.0,0.59613053]
[1723300829689,1.35015173,60731.0,60730.0,0.59613053]
[1723300830250,1.30078951,60731.0,60730.0,0.59613053]
[1723300830445,1.30078951,60731.0,60730.0,0.59513053]
[1723300830446,1.35015198,60731.0,60730.0,0.59513053]
[1723300830768,1.30178951,60731.0,60730.0,0.59513053]
[1723300831171,1.35115198,60731.0,60730.0,0.59513053]
[1723300831395,1.30078951,60731.0,60730.0,0.59513053]
[1723300831555,1.37583285,60731.0,60730.0,0.59513053]
[1723300831939,1.30515177,60731.0,60730.0,0.59513053]
[1723300832142,1.30415177,60731.0,60730.0,0.67773053]
[1723300832569,1.30515177,60731.0,60730.0,0.67773053]
[1723300833905,1.30415177,60731.0,60730.0,0.67773053]
[1723300834311,1.13949177,60731.0,60730.0,0.67773053]
[1723300834720,0.87483177,60731.0,60730.0,0.67873053]
[1723300834920,0.16483177,60731.0,60730.0,0.67873053]
[1723300835177,0.16483177,60731.0,60730.0,0.68373053]
[1723300835178,0.00370177,60731.0,60730.0,0.68373053]
[1723300835327,0.00370177,60731.0,60730.0,1.09453945]
[1723300835328,0.00033951,60731.0,60730.0,1.09453945]
[1723300835506,0.00344061,60731.0,60730.0,1.20754355]
[1723300835714,0.00033951,60731.0,60730.0,1.20754355]
[1723300836349,0.00033951,60731.0,60730.0,1.37220655]
[1723300836987,0.161119,60739.0,60737.0,0.0613]
[1723300837187,0.161119,60739.0,60738.0,0.75432]
[1723300837383,0.161119,60739.0,60738.0,0.81562]
[1723300838188,0.0788,60739.0,60738.0,0.81562]
[1723300838401,0.0788,60739.0,60738.0,0.82062]
[1723300839008,0.0788,60739.0,60738.0,0.82762]
[1723300839607,0.161119,60739.0,60738.0,0.82662]
[1723300839812,0.161119,60739.0,60738.0,0.83066578]
[1723300840410,0.161119,60739.0,60738.0,0.82366578]
[1723300840616,0.161119,60739.0,60738.0,0.82666578]
[1723300841292,0.161119,60739.0,60738.0,0.82862]
[1723300842016,0.0788,60739.0,60738.0,0.82862]
[1723300843216,0.161119,60739.0,60738.0,0.82862]
[1723300843485,0.25646069,60746.0,60745.0,0.1489]
[1723300843684,0.42573,60746.0,60745.0,0.1489]
[1723300844002,0.590351,60746.0,60745.0,0.1489]
[1723300844855,0.42573,60746.0,60745.0,0.1489]
[1723300845381,0.42573,60746.0,60745.0,0.1499]
[1723300846866,0.42573,60746.0,60745.0,0.0623]
[1723300846867,0.590351,60746.0,60745.0,0.0623]
[1723300847031,0.672151,60746.0,60745.0,0.0623]
[1723300847827,0.836772,60746.0,60745.0,0.0613]
[1723300848026,0.836772,60746.0,60745.0,0.0623]
[1723300848637,0.83995751,60746.0,60745.0,0.0623]
[1723300849918,0.84078851,60746.0,60745.0,0.0623]
[1723300850928,1.03260343,60746.0,60745.0,0.001]
[1723300851358,1.02760343,60746.0,60745.0,0.001]
[1723300851568,0.86378851,60746.0,60745.0,0.0643]
[1723300851783,0.78198851,60746.0,60745.0,0.0643]
[1723300851991,0.59436751,60746.0,60745.0,0.0643]
[1723300852203,0.59436751,60746.0,60745.0,0.1403]
[1723300853507,0.32974651,60746.0,60745.0,0.1453]
[1723300854214,0.49436751,60746.0,60745.0,0.1443]
[1723300854659,0.49436751,60746.0,60745.0,0.1453]
[1723300855088,0.49436751,60746.0,60745.0,0.1393]
[1723300856811,0.49436751,60746.0,60745.0,0.1403]
[1723300857150,0.49436751,60746.0,60745.0,0.0643]
[1723300857310,0.49436751,60746.0,60745.0,0.0633]
[1723300857774,0.49436751,60746.0,60745.0,0.0643]
[1723300858330,0.49436751,60746.0,60745.0,0.0633]
[1723300858595,0.49436751,60746.0,60745.0,0.0643]
[1723300859153,0.49436751,60746.0,60745.0,0.0693]
[1723300859553,0.49436751,60746.0,60745.0,0.0643]
[1723300860030,0.49436751,60746.0,60745.0,0.0633]
[1723300860437,0.49436751,60746.0,60745.0,0.0683]
[1723300860664,0.49436751,60746.0,60745.0,0.0633]
[1723300861032,0.32974651,60746.0,60745.0,0.0683]
[1723300861241,0.32974651,60746.0,60745.0,0.81697]
[1723300861242,0.16512551,60746.0,60745.0,0.81697]
[1723300861475,0.32974451,60746.0,60745.0,0.81697]
[1723300861668,0.32974451,60746.0,60745.0,0.81597]
[1723300864073,0.32974451,60746.0,60745.0,0.82397]
[1723300864283,0.32974451,60746.0,60745.0,0.82597]
[1723300864284,0.16512551,60746.0,60745.0,0.82597]
[1723300864467,0.16512551,60746.0,60745.0,0.81597]
[1723300864736,0.16512551,60746.0,60745.0,0.81797]
[1723300865000,0.08281651,60746.0,60745.0,0.82197]
[1723300865444,0.08281651,60746.0,60745.0,0.81797]
[1723300865662,0.08281651,60746.0,60745.0,0.81597]
[1723300866320,0.16512551,60746.0,60745.0,0.81597]
[1723300866725,0.00401651,60746.0,60745.0,0.81997]
[1723300866854,0.08281651,60746.0,60745.0,0.81997]
[1723300867062,0.08281651,60746.0,60745.0,0.81797]
[1723300867290,0.08281651,60746.0,60745.0,0.81597]
[1723300867605,0.08281651,60746.0,60745.0,0.82297]
[1723300868067,0.08281651,60746.0,60745.0,0.81597]
[1723300868264,0.08281651,60746.0,60745.0,0.82797]
[1723300869322,0.16512551,60746.0,60745.0,0.82797]
[1723300869732,0.08281651,60746.0,60745.0,0.82797]
[1723300869995,0.08281651,60746.0,60745.0,0.82501488]
[1723300870512,0.08281651,60746.0,60745.0,0.82701488]
[1723300870896,0.08281651,60746.0,60745.0,0.82501488]
[1723300871101,0.08281651,60746.0,60745.0,0.83201488]
[1723300871588,0.16512551,60746.0,60745.0,0.82797]
[1723300871970,0.00401651,60746.0,60745.0,0.82797]
[1723300872400,0.000831,60746.0,60745.0,0.82797]
[1723300872578,0.00399585,60746.0,60745.0,0.82797]
[1723300872795,0.00399585,60746.0,60745.0,0.910281]
[1723300873015,0.00399585,60746.0,60745.0,0.82097]
[1723300873536,0.00399585,60746.0,60745.0,0.82797]
[1723300873794,0.00399585,60746.0,60745.0,0.82297]
[1723300873971,0.00399585,60746.0,60745.0,0.82097]
[1723300874178,0.00399585,60746.0,60745.0,0.82797]
[1723300874378,0.00399585,60746.0,60745.0,0.82297]
[1723300874668,0.00399585,60746.0,60745.0,0.82097]
[1723300874905,0.00399585,60746.0,60745.0,0.81597]
[1723300875108,0.00399585,60746.0,60745.0,0.82397]
[1723300875316,0.00399585,60746.0,60745.0,0.912281]
[1723300875526,0.00399585,60746.0,60745.0,1.076903]
[1723300875718,0.000831,60746.0,60745.0,0.912281]
[1723300876132,0.000831,60746.0,60745.0,1.24071792]
[1723300876469,0.000831,60746.0,60745.0,1.23271792]
[1723300876690,0.000831,60746.0,60745.0,1.24071792]
[1723300876895,0.000831,60746.0,60745.0,1.23471792]
[1723300877115,0.000831,60746.0,60745.0,1.24071792]
[1723300877325,0.000831,60746.0,60745.0,1.23271792]
[1723300877475,0.000831,60746.0,60745.0,1.23671792]
[1723300877922,0.000831,60746.0,60745.0,1.24471792]
[1723300878594,0.000831,60746.0,60745.0,1.40933992]
[1723300879394,0.000831,60746.0,60745.0,1.57396192]
[1723300879597,0.000831,60746.0,60745.0,1.51250327]
[1723300879767,0.000831,60746.0,60745.0,1.52250327]
[1723300879971,0.000831,60746.0,60745.0,1.51450327]
[1723300880390,0.000831,60746.0,60745.0,1.68012527]
[1723300880572,0.000831,60746.0,60745.0,1.68312527]
[1723300881030,0.000831,60746.0,60745.0,1.69712527]
[1723300881163,0.000831,60746.0,60745.0,1.68312527]
[1723300881808,0.000831,60746.0,60745.0,1.69712527]
[1723300882944,0.000831,60746.0,60745.0,1.68312527]
[1723300883459,0.000831,60746.0,60745.0,1.69712527]
[1723300883671,0.000831,60746.0,60745.0,1.56996192]
[1723300883834,0.000831,60746.0,60745.0,1.68297314]
[1723300884364,0.000831,60746.0,60745.0,1.69697314]
[1723300886758,0.000831,60746.0,60745.0,1.69678355]
[1723300888499,0.000831,60746.0,60745.0,1.36753955]
[1723300888654,0.000831,60746.0,60745.0,1.29153955]
[1723300888932,0.000831,60746.0,60745.0,1.04460655]
[1723300889175,0.000831,60746.0,60745.0,0.76797]
[1723300889735,0.327559,60746.0,60745.0,0.69967]
[1723300889971,0.327559,60746.0,60745.0,0.68567]
[1723300890174,0.327559,60746.0,60745.0,0.67167]
[1723300890333,0.327559,60746.0,60745.0,0.68567]
[1723300890699,0.327559,60746.0,60745.0,0.67967]
[1723300890903,0.327559,60746.0,60745.0,0.68367]
[1723300891103,0.327559,60746.0,60745.0,0.67567]
[1723300891379,0.327559,60746.0,60745.0,0.67167]
[1723300892370,0.327559,60746.0,60745.0,0.67467]
[1723300892784,0.327559,60746.0,60745.0,0.67967]
[1723300893981,0.327559,60746.0,60745.0,0.67667]
[1723300894114,0.32736084,60746.0,60745.0,0.68067]
[1723300894316,0.32736084,60746.0,60745.0,0.68267]
[1723300895582,0.32736084,60746.0,60745.0,0.67867]
[1723300895998,0.32736084,60746.0,60745.0,0.68267]
[1723300896421,0.32736084,60746.0,60745.0,0.67867]
[1723300896625,0.32736084,60746.0,60745.0,0.68267]
[1723300898356,0.16274184,60746.0,60745.0,0.68267]
[1723300898687,0.08294184,60746.0,60745.0,0.74747]
[1723300899318,0.24756084,60746.0,60745.0,0.74747]
[1723300900349,0.08294184,60746.0,60745.0,0.74747]
[1723300902382,0.08294184,60746.0,60745.0,0.74347]
[1723300902706,0.08294184,60746.0,60745.0,0.74847]
[1723300903370,0.24756084,60746.0,60745.0,0.74847]
[1723300903792,0.16174184,60746.0,60745.0,0.74647]
[1723300904192,0.08294184,60746.0,60745.0,0.74947]
[1723300904646,0.08294184,60746.0,60745.0,0.99318492]
[1723300904647,0.00063284,60746.0,60745.0,0.99318492]
[1723300904841,0.00063284,60746.0,60745.0,1.24011792]
[1723300905166,0.00063284,60746.0,60745.0,1.07549592]
[1723300906706,0.00063284,60746.0,60745.0,1.35345358]
[1723300907167,0.00063284,60746.0,60745.0,1.51807558]
[1723300908269,0.00063284,60746.0,60745.0,1.51782768]
[1723300910069,0.00063284,60746.0,60745.0,1.51874178]
[1723300911818,0.00063284,60746.0,60745.0,1.40565402]
[1723300911994,0.00063284,60746.0,60745.0,1.51878953]
[1723300913406,0.00063284,60746.0,60745.0,1.51376144]
[1723300913822,0.00063284,60746.0,60745.0,1.52776144]
[1723300914539,0.00063284,60746.0,60745.0,1.52476144]
[1723300914971,0.00063284,60746.0,60745.0,1.53776144]
[1723300916165,0.00063284,60746.0,60745.0,1.53742822]
[1723300918240,0.00063284,60746.0,60745.0,1.53781244]
[1723300919542,0.00063284,60746.0,60745.0,1.42465402]
[1723300919767,0.00063284,60746.0,60745.0,1.53771308]
[1723300922291,0.00063284,60746.0,60745.0,1.53774137]
[1723300923746,0.00063284,60746.0,60745.0,1.53772382]
[1723300925903,0.00063284,60746.0,60745.0,1.53775446]
[1723300926279,0.00063284,60746.0,60745.0,1.42465402]
[1723300926483,0.00063284,60746.0,60745.0,1.53772733]
[1723300929416,0.00063284,60746.0,60745.0,1.53741434]
[1723300930854,0.00063284,60746.0,60745.0,1.29289234]
[1723300931068,0.07613284,60746.0,60745.0,0.98115934]
[1723300931390,0.07613284,60746.0,60745.0,1.06347034]
[1723300931799,0.07613284,60746.0,60745.0,0.98115934]
[1723300932226,0.07613284,60746.0,60745.0,0.81734442]
[1723300932429,0.07613284,60746.0,60745.0,0.7045841]
[1723300933070,0.15844184,60746.0,60745.0,0.7045841]
[1723300933245,0.07613284,60746.0,60745.0,0.7045841]
[1723300933564,0.23724184,60746.0,60745.0,0.7045841]
[1723300933991,0.40186084,60746.0,60745.0,0.6995841]
[1723300934146,0.56647984,60746.0,60745.0,0.6995841]
[1723300934987,0.56647984,60746.0,60745.0,0.6855841]
[1723300935193,0.56647984,60746.0,60745.0,0.6725841]
[1723300935397,0.56647984,60746.0,60745.0,0.6765841]
[1723300935772,0.56647984,60746.0,60745.0,0.6725841]
[1723300935982,0.56647984,60746.0,60745.0,0.6745841]
[1723300937606,0.56647984,60746.0,60745.0,0.6785841]
[1723300938028,0.56647984,60746.0,60745.0,0.6745841]
[1723300938247,0.56647984,60746.0,60745.0,0.6725841]
[1723300938454,0.56647984,60746.0,60745.0,0.6765841]
[1723300938658,0.56647984,60746.0,60745.0,0.6785841]
[1723300939080,0.56647984,60746.0,60745.0,0.6765841]
[1723300939279,0.56647984,60746.0,60745.0,0.6785841]
[1723300940728,0.56647984,60746.0,60745.0,0.6745841]
[1723300941231,0.56747984,60746.0,60745.0,0.6745841]
[1723300943828,0.56747984,60746.0,60745.0,0.6725841]
[1723300944053,0.56647984,60746.0,60745.0,0.6745841]
[1723300944845,0.56747984,60746.0,60745.0,0.6745841]
[1723300945046,0.56647984,60746.0,60745.0,0.6725841]
[1723300945468,0.56747984,60746.0,60745.0,0.6745841]
[1723300945680,0.56647984,60746.0,60745.0,0.6745841]
[1723300945880,0.00063284,60746.0,60745.0,0.98269902]
[1723300946081,0.00063284,60746.0,60745.0,1.22963202]
[1723300946722,0.00063284,60746.0,60745.0,1.34228984]
[1723300947030,0.00063284,60746.0,60745.0,1.22763202]
[1723300947229,0.00163284,60746.0,60745.0,1.34031161]
[1723300947451,0.00163284,60746.0,60745.0,1.34231161]
[1723300947641,0.00063284,60746.0,60745.0,1.34215002]
[1723300947851,0.00063284,60746.0,60745.0,1.34915002]
[1723300948189,0.00063284,60746.0,60745.0,1.35015002]
[1723300948410,0.00063284,60746.0,60745.0,1.35915002]
[1723300948815,0.00063284,60746.0,60745.0,1.34015002]
[1723300948993,0.00063284,60746.0,60745.0,1.35115002]
[1723300950123,0.00063284,60746.0,60745.0,1.51577202]
[1723300950320,0.00063284,60746.0,60745.0,1.50477202]
[1723300950726,0.00063284,60746.0,60745.0,1.52585962]
[1723300950926,0.00063284,60746.0,60745.0,1.51685962]
[1723300951323,0.00063284,60746.0,60745.0,1.51785962]
[1723300951522,0.00063284,60746.0,60745.0,1.53185962]
[1723300951730,0.00063284,60746.0,60745.0,1.51885962]
[1723300951931,0.00063284,60746.0,60745.0,1.50485962]
[1723300952081,0.00063284,60746.0,60745.0,1.51785962]
[1723300952315,0.00063284,60746.0,60745.0,1.50485962]
[1723300952697,0.00063284,60746.0,60745.0,1.50034046]
[1723300953142,0.00063284,60746.0,60745.0,1.49065027]
[1723300953349,0.00063284,60746.0,60745.0,1.66927227]
[1723300953751,0.00063284,60746.0,60745.0,1.79966013]
[1723300954234,0.00063284,60746.0,60745.0,1.77266013]
[1723300954487,0.00063284,60746.0,60745.0,1.66927227]
[1723300954649,0.00063284,60746.0,60745.0,1.65527227]
[1723300954825,0.00063284,60746.0,60745.0,1.66927227]
[1723300955047,0.00063284,60746.0,60745.0,1.68327227]
[1723300955256,0.00063284,60746.0,60745.0,1.86389427]
[1723300955456,0.00063284,60746.0,60745.0,1.96725535]
[1723300955650,0.00063284,60746.0,60745.0,1.95125535]
[1723300955950,0.00063284,60746.0,60745.0,1.78663335]
[1723300956420,0.00063284,60746.0,60745.0,1.79607005]
[1723300956548,0.00063284,60746.0,60745.0,1.79604698]
[1723300956748,0.00063284,60746.0,60745.0,1.81004698]
[1723300957456,0.00063284,60746.0,60745.0,1.68327227]
[1723300958018,0.00063284,60746.0,60745.0,1.76207227]
[1723300958216,0.00063284,60746.0,60745.0,1.76185038]
[1723300958659,0.00063284,60746.0,60745.0,1.64946667]
[1723300958866,0.00063284,60746.0,60745.0,1.76175779]
[1723300959669,0.00063284,60746.0,60745.0,1.68295779]
[1723300960972,0.00063284,60746.0,60745.0,1.68248519]
[1723300961783,0.00063284,60746.0,60745.0,1.6825184]
[1723300963504,0.00063284,60746.0,60745.0,1.68261696]
[1723300965663,0.00063284,60746.0,60745.0,1.68268643]
[1723300966149,0.00063284,60746.0,60745.0,1.79999608]
[1723300966287,0.00063284,60746.0,60745.0,1.80199608]
[1723300966486,0.00063284,60746.0,60745.0,1.80198725]
[1723300966688,0.00063284,60746.0,60745.0,1.79998725]
[1723300966911,0.00063284,60746.0,60745.0,1.87878725]
[1723300968576,0.00063284,60746.0,60745.0,1.88878725]
[1723300969139,0.00063284,60746.0,60745.0,1.77676719]
[1723300969339,0.00063284,60746.0,60745.0,1.89061435]
[1723300969543,0.00063284,60746.0,60745.0,1.84165355]
[1723300969697,0.00063284,60746.0,60745.0,1.84151257]
[1723300970913,0.00063284,60746.0,60745.0,1.82749494]
[1723300971113,0.00063284,60746.0,60745.0,1.81749494]
[1723300971318,0.00063284,60746.0,60745.0,1.81549494]
[1723300972197,0.00063284,60746.0,60745.0,1.81749494]
[1723300972806,0.00063284,60746.0,60745.0,2.0122283]
[1723300973273,0.00063284,60746.0,60745.0,2.18307757]
[1723300974349,0.00063284,60746.0,60745.0,2.16307757]
[1723300975543,0.00063284,60746.0,60745.0,1.98645557]
[1723300976901,0.00063284,60746.0,60745.0,1.83090596]
[1723300977113,0.00063284,60746.0,60745.0,1.66005613]
[1723300977315,0.00063284,60746.0,60745.0,1.5917162]
[1723300977930,0.00063284,60746.0,60745.0,1.4270942]
[1723300978367,0.00063284,60746.0,60745.0,1.25258532]
[1723300978567,0.00063284,60746.0,60745.0,1.36421878]
[1723300979244,0.00063284,60746.0,60745.0,1.35021878]
[1723300979426,0.00063284,60746.0,60745.0,1.33621878]
[1723300979628,0.00063284,60746.0,60745.0,1.35021878]
[1723300980069,0.00063284,60746.0,60745.0,1.22458532]
[1723300980253,0.00063284,60746.0,60745.0,1.41523265]
[1723300980455,0.00063284,60746.0,60745.0,1.35043265]
[1723300980656,0.00063284,60746.0,60745.0,1.35057365]
[1723300980899,0.00063284,60746.0,60745.0,1.36457365]
[1723300981073,0.00063284,60746.0,60745.0,1.35057365]
[1723300981414,0.00063284,60746.0,60745.0,1.33657365]
[1723300981723,0.00063284,60746.0,60745.0,1.35057365]
[1723300981916,0.00063284,60746.0,60745.0,1.33657365]
[1723300982280,0.00063284,60746.0,60745.0,1.35057365]
[1723300982627,0.07993284,60746.0,60745.0,1.19995165]
[1723300983234,0.07993284,60746.0,60745.0,1.18595165]
[1723300983662,0.07993284,60746.0,60745.0,0.78420373]
[1723300983663,0.24104184,60746.0,60745.0,0.78420373]
[1723300983866,0.24104184,60746.0,60745.0,0.6722154]
[1723300984090,0.40566084,60746.0,60745.0,0.6722154]
[1723300984297,0.24104184,60746.0,60745.0,0.6722154]
[1723300984475,0.24104184,60746.0,60745.0,0.6442154]
[1723300984877,0.24104184,60746.0,60745.0,0.6542154]
[1723300985087,0.24104184,60746.0,60745.0,0.6442154]
[1723300985481,0.24104184,60746.0,60745.0,0.6542154]
[1723300985679,0.07993284,60746.0,60745.0,0.6542154]
[1723300985892,0.07993284,60746.0,60745.0,0.6652154]
[1723300986452,0.07993284,60746.0,60745.0,0.6542154]
[1723300986650,0.07993284,60746.0,60745.0,0.91634132]
[1723300987107,0.07993284,60746.0,60745.0,0.91134132]
[1723300987338,0.07993284,60746.0,60745.0,0.6702154]
[1723301000563,0.07993284,60746.0,60745.0,0.66811557]
[1723301002148,0.24104184,60746.0,60745.0,0.66311557]
[1723301002939,0.15873284,60746.0,60745.0,0.66311557]
[1723301003190,0.57027984,60746.0,60745.0,0.66311557]
[1723301003656,0.60788436,60746.0,60745.0,0.66311557]
[1723301003892,0.61788436,60746.0,60745.0,0.66311557]
[1723301004130,0.60788436,60746.0,60745.0,0.66311557]
[1723301004349,0.60288436,60746.0,60745.0,0.65311557]
[1723301004786,0.60288436,60746.0,60745.0,0.65711557]
[1723301005021,0.60788436,60746.0,60745.0,0.65711557]
[1723301005322,0.59827984,60746.0,60745.0,0.64611557]
[1723301005535,0.60785278,60746.0,60745.0,0.64611557]
[1723301005749,0.60785278,60746.0,60745.0,0.65211557]
[1723301006180,0.60785278,60746.0,60745.0,0.64611557]
[1723301006383,0.33643378,60746.0,60745.0,0.64611557]
[1723301006563,0.41523378,60746.0,60745.0,0.65211557]
[1723301007369,0.4152659,60746.0,60745.0,0.65211557]
[1723301008349,0.5798849,60746.0,60745.0,0.65211557]
[1723301008920,0.57989038,60746.0,60745.0,0.65211557]
[1723301010068,0.57989038,60746.0,60745.0,0.64611557]